[Event "Azerbaijan-ch 1st League 2025"]
[Site "Baku"]
[Date "2025.01.06"]
[Round "1.1"]
[White "Alizada, Pasham"]
[Black "Ibrahimli, Murad"]
[Result "0-1"]
[Annotator "TA"]
[ECO "C47"]
[WhiteElo "2117"]
[BlackElo "2415"]
[PlyCount "100"]
[EventDate "2025.01.05"]
[EventType "swiss"]
[EventCountry "AZE"]
[SourceTitle "playchess.com"]
[Source "ChessBase"]
[SourceQuality "1"]
[TimeControl "40/5400+30:1800+30"]

{[%evp 12,100,22,18,18,20,12,10,22,11,14,16,19,-16,0,-16,0,-6,0,-13,0,0,2,0,5,10,6,0,1,0,0,0,7,0,10,-13,-10,-15,-5,-12,-5,-5,0,0,-2,-98,-103,-95,-90,-96,-91,-582,-563,-558,-534,-637,-579,-664,-666,-648,-578,-539,-477,-418,-325,-335,-337,-756,-262,-419,-412,-599,-592,-522,-442,-447,-431,-422,-412,-447,-445,-437,-418,-430,-439,-473,-427,-642,-796,-727,-722]} 1. e4 {[%emt 0:00:08]} e5 {[%emt 0:00:55]} 2. Nf3 {[%emt 0:00:03]} Nc6 {[%emt 0:00:06]} 3. Nc3 {[%emt 0:00:03]} Nf6 {[%emt 0:00:35]} 4. a3 {[%emt 0:00:03]} Be7 {[%emt 0:02:02]} 5. d4 {[%emt 0:00:36]} exd4 {[%emt 0:00:07]} 6. Nxd4 {[%emt 0:00:03]} d6 {[%emt 0:01:05]} 7. Bb5 {[%emt 0:01:44]} Bd7 {[%emt 0:00:07]} 8. O-O {[%emt 0:00:11]} O-O {[%emt 0:00:14]} 9. Nxc6 {[%emt 0:09:03]} Bxc6 {[%emt 0:00:54]} 10. Bxc6 {[%emt 0:02:39]} bxc6 {[%emt 0:00:12]} 11. Qd4 {[%emt 0:06:02]} Qb8 {[%emt 0:03:24]} 12. b4 {[%emt 0:09:27]} Nd7 {[%emt 0:00:49]} 13. Rb1 {[%emt 0:07:06]} Bf6 {[%emt 0:00:38]} 14. Qc4 {[%emt 0:01:36]} Qb7 {[%emt 0:02:41]} 15. Be3 {[%emt 0:07:42]} Rab8 {[%emt 0:12:31]} 16. h3 {[%emt 0:07:22]} a6 {[%emt 0:08:50]} 17. a4 {[%emt 0:07:34]} Nb6 {[%emt 0:03:46]} 18. Qd3 {[%emt 0:04:06]} Nd7 {[%emt 0:09:08][%cal Bb6d7,Bd7e5,Be5g6][%mdl 32]} 19. Qc4 {[%emt 0:00:57]} Ne5 {[%emt 0:03:16]} 20. Qe2 {[%emt 0:00:06]} Ng6 {[%emt 0:00:05]} 21. Qd2 {[%emt 0:09:38]} Rfe8 {[%emt 0:00:20]} 22. Bd4 {[%emt 0:00:05]} Ne5 {[%emt 0:04:40]} 23. Rfe1 {[%emt 0:02:34]} Nc4 {[%emt 0:03:37]} 24. Qd3 {[%emt 0:00:05]} Bxd4 {[%emt 0:00:05]} 25. Qxc4 {[%emt 0:05:19]} Qb6 {[%emt 0:05:39]} 26. Kh1 {[%emt 0:00:04]} Bf6 {[%emt 0:03:34][%cal Ob6d4] ...Qd4! is in the air} 27. Re3 $1 {[%emt 0:03:58]} h6 $36 {[%emt 0:11:20][%mdl 2048] Black has good play.} 28. Rb3 {[%emt 0:03:36]} (28. a5 $11 Qb7 29. Rg3) 28... d5 $1 $17 {[%emt 0:01:06]} 29. exd5 {[%emt 0:00:12]} Rxe3 {[%emt 0:00:05]} 30. fxe3 {[%emt 0:00:08]} Qxe3 {[%emt 0:00:05] ( -> ...Qe1+)} 31. Ne4 $2 {[%emt 0:06:02][%mdl 8192]} (31. Ne2 $17 {nothing else works.} Qe5 (31... cxd5 32. Qxc7 Qe8 33. Re3 $15) 32. Qxa6) 31... Qe1+ $19 {[%emt 0:00:56]} 32. Kh2 {[%emt 0:00:01] Threatens to win with Nxf6+.} Be5+ {[%emt 0:00:10]} 33. Ng3 {[%emt 0:01:25] [#]} Rxb4 $3 {[%emt 0:00:14][%mdl 512] White is weak on the dark squares} 34. Qxa6 {[%emt 0:01:04]} g6 {[%emt 0:01:17] ( -> ...Rxb3)} ({Weaker is} 34... cxd5 35. Qc8+ Kh7 36. Qf5+ Kh8 37. Qc8+ Kh7 38. Qf5+ Kg8 39. Qc8+ Kh7 $11) 35. Qd3 {[%emt 0:04:03]} Rxa4 {[%emt 0:02:35] ( -> ...Ra1)} 36. Qe3 {[%emt 0:00:59]} Qxe3 {[%emt 0:00:16]} 37. Rxe3 {[%emt 0:00:01][%mdl 4096] Endgame KRB-KRN. Black is a pawn up.} Bf4 {[%emt 0:00:16]} 38. Rd3 {[%emt 0:00:58]} cxd5 {[%emt 0:00:37]} 39. Rxd5 $2 {[%emt 0:00:03]} (39. Kg1) 39... Rc4 $2 {[%emt 0:00:05]} (39... h5 40. h4 Ra3) 40. h4 {[%emt 0:00:00]} (40. Rd3 {was worth a try.}) 40... Rxc2 {[%emt 0:00:00]} 41. Rd4 {[%emt 0:01:14]} (41. Rd3 $142) 41... Bd6 {[%emt 0:00:54]} 42. Rd3 {[%emt 0:00:05]} h5 {[%emt 0:00:08]} 43. Kg1 {[%emt 0:00:56]} Rc4 {[%emt 0:00:07]} 44. Ne2 {[%emt 0:00:13]} Rxh4 {[%emt 0:00:06] and ...Bc5+ would now be decisive} 45. Kf2 {[%emt 0:00:03]} Rb4 {[%emt 0:00:06]} 46. Rd5 {[%emt 0:00:15]} Kg7 {[%emt 0:00:06]} 47. Nc3 {[%emt 0:00:12]} Rc4 {[%emt 0:00:09]} 48. Rd3 {[%emt 0:00:16]} Be5 {[%emt 0:00:07]} 49. Nd5 {[%emt 0:00:19]} (49. Nd1 $142) 49... Rd4 {[%emt 0:00:18]} 50. Rxd4 {[%emt 0:00:04]} Bxd4+ {[%emt 0:00:01]} 0-1

[Event "Azerbaijan-ch 1st League 2025"]
[Site "Baku"]
[Date "2025.01.06"]
[Round "1.2"]
[White "Atakishiyev, Elmar"]
[Black "Alizada, Agshin"]
[Result "1-0"]
[Annotator "TA"]
[ECO "A48"]
[WhiteElo "2408"]
[BlackElo "2116"]
[PlyCount "80"]
[EventDate "2025.01.05"]
[EventType "swiss"]
[EventCountry "AZE"]
[SourceTitle "playchess.com"]
[Source "ChessBase"]
[SourceQuality "1"]
[TimeControl "40/5400+30:1800+30"]

{[%evp 9,80,19,25,26,34,20,41,38,39,27,37,26,36,40,42,45,40,46,19,42,72,-31,-20,-78,-82,-81,-79,-136,-86,-151,-86,-186,-179,-220,-183,-218,-227,-228,-220,-242,-181,-173,-184,-174,-79,-93,-24,-112,-92,-80,-89,-82,-83,-82,-47,-112,-112,-115,-113,-109,-39,-36,-39,-31,60,66,99,93,89,89,109,95,104]} 1. d4 {[%emt 0:00:42]} Nf6 {[%emt 0:00:08]} 2. Nf3 {[%emt 0:00:09]} g6 {[%emt 0:00:50]} 3. Bg5 {[%emt 0:02:06]} Ne4 {[%emt 0:02:08]} 4. Bf4 {[%emt 0:00:14]} Bg7 {[%emt 0:00:09]} 5. e3 {[%emt 0:00:21]} c5 {[%emt 0:14:43]} 6. Nbd2 {[%emt 0:01:58]} Nf6 {[%emt 0:09:03]} 7. c3 {[%emt 0:05:44]} cxd4 {[%emt 0:02:48]} 8. exd4 {[%emt 0:04:08]} O-O {[%emt 0:00:25]} 9. Be2 {[%emt 0:00:06]} Nc6 {[%emt 0:08:23]} 10. O-O {[%emt 0:00:09]} d6 {[%emt 0:02:53]} 11. h3 {[%emt 0:01:48]} Re8 {[%emt 0:04:10]} 12. Bh2 {[%emt 0:00:41]} e5 {[%emt 0:12:01]} 13. dxe5 {[%emt 0:02:16]} dxe5 {[%emt 0:00:09]} 14. Nc4 {[%emt 0:00:49]} Nd5 {[%emt 0:00:40]} 15. Nfd2 {[%emt 0:06:31]} (15. Re1 $16) 15... b5 {[%emt 0:03:55]} 16. Na3 {[%emt 0:03:40]} (16. Ne3 $11) 16... b4 $17 {[%emt 0:02:28]} 17. cxb4 {[%emt 0:02:14]} Ndxb4 {[%emt 0:01:47]} 18. Bf3 {[%emt 0:18:02]} (18. Ne4) 18... Rb8 {[%emt 0:01:32]} (18... Ba6 $142 19. Re1 Rc8) 19. Nb3 {[%emt 0:06:48]} (19. Bxc6 $142 Nxc6 20. Nac4) 19... Ba6 {[%emt 0:09:59]} (19... Qf6 20. Bxc6 Qxc6) 20. Re1 {[%emt 0:05:51] [#]} (20. Bxc6 $17 Nxc6 21. Qxd8 Rexd8 22. Rfe1) 20... Qb6 $1 $19 {[%emt 0:01:39]} 21. Be2 {[%emt 0:08:18]} Rbd8 {[%emt 0:03:53]} 22. Qb1 {[%emt 0:00:27]} Nd3 {[%emt 0:00:17]} 23. Bxd3 {[%emt 0:01:08]} Bxd3 {[%emt 0:00:05]} 24. Qc1 {[%emt 0:00:08]} e4 {[%emt 0:01:38]} 25. Nc4 {[%emt 0:02:25]} Qb4 {[%emt 0:00:45]} 26. Ne3 {[%emt 0:01:56]} Ne5 {[%emt 0:08:11]} (26... Rc8 $19 {has better winning chances.} 27. Nd5 Qf8) 27. Qc5 $17 {[%emt 0:04:19]} Qb7 {[%emt 0:03:45]} (27... Qa4 $17 {Threatening ...Nd7.} 28. Qa5 Qxa5 29. Nxa5 Rb8) 28. Rad1 {[%emt 0:04:06]} (28. Rac1 $11 {remains equal.}) 28... Rc8 {[%emt 0:01:53]} 29. Qa5 {[%emt 0:06:15]} Nc6 {[%emt 0:00:51][%csl LRa5,LRb2]} 30. Qa3 {[%emt 0:01:17]} Nb4 {[%emt 0:03:05]} 31. Rc1 {[%emt 0:00:29]} Qb6 {[%emt 0:00:35] Wards off Bd6} 32. Bf4 {[%emt 0:03:58]} ({White should play} 32. Rxc8 $15 Rxc8 33. Bf4) 32... Bf8 {[%emt 0:00:49] This pair of bishops is nice.} 33. Rxc8 {[%emt 0:05:27]} Rxc8 {[%emt 0:00:04]} 34. Rc1 {[%emt 0:00:13] [#]} Rxc1+ {[%emt 0:01:09]} ({Better is} 34... Bc2 $1 $17 {...Nd3 would now be deadly.} 35. Qa5 (35. Nxc2 $2 Nd3 $19) 35... Bxb3 36. Rxc8 Qxa5) 35. Nxc1 $15 {[%emt 0:00:01]} Qc6 {[%emt 0:00:35]} 36. Qc3 {[%emt 0:01:39] Prevents Nd5.} Qxc3 {[%emt 0:00:26]} (36... Bb5 $15) 37. bxc3 $14 {[%emt 0:00:01]} Na6 {[%emt 0:00:32]} 38. Nxd3 {[%emt 0:00:49]} exd3 {[%emt 0:00:05]} 39. Kf1 {[%emt 0:00:46]} Nc5 {[%emt 0:00:49][%cal Og6g5]} 40. Nd5 {[%emt 0:00:00]} f5 {[%emt 0:01:13]} 1-0

[Event "Azerbaijan-ch 1st League 2025"]
[Site "Baku"]
[Date "2025.01.06"]
[Round "1.3"]
[White "Allajov, Ramil"]
[Black "Ahmad, Khagan"]
[Result "1-0"]
[Annotator "TA"]
[ECO "E06"]
[WhiteElo "2079"]
[BlackElo "2406"]
[PlyCount "95"]
[EventDate "2025.01.05"]
[EventType "swiss"]
[EventCountry "AZE"]
[SourceTitle "playchess.com"]
[Source "ChessBase"]
[SourceQuality "1"]
[TimeControl "40/5400+30:1800+30"]

{[%evp 12,95,0,-14,23,20,31,20,41,0,11,15,16,8,27,12,45,33,77,87,68,43,78,78,62,73,70,72,104,101,110,106,158,167,168,54,61,22,30,33,34,31,45,10,22,12,17,0,26,25,17,18,25,11,11,12,14,19,29,29,54,61,48,52,213,213,251,284,293,295,295,295,292,256,241,203,203,203,463,463,445,439,1999,1941,29973,1966]} 1. Nf3 {[%emt 0:00:18]} d5 {[%emt 0:01:29]} 2. c4 {[%emt 0:00:18]} e6 {[%emt 0:00:20]} 3. d4 {[%emt 0:01:00]} Nf6 {[%emt 0:00:24]} 4. g3 {[%emt 0:00:52]} Be7 {[%emt 0:00:29]} 5. Bg2 {[%emt 0:00:06]} O-O {[%emt 0:00:07]} 6. Qc2 {[%emt 0:00:35]} c5 {[%emt 0:00:26]} 7. cxd5 {[%emt 0:02:18]} Nxd5 {[%emt 0:00:42]} 8. dxc5 {[%emt 0:00:32]} Na6 {[%emt 0:11:46]} 9. O-O {[%emt 0:02:17]} Nxc5 {[%emt 0:00:12]} 10. Bd2 {[%emt 0:14:40]} Bd7 {[%emt 0:06:50]} 11. Nc3 {[%emt 0:02:29] Prevents Na4.} Bc6 {[%emt 0:05:48]} 12. Rfd1 {[%emt 0:02:27]} Rc8 {[%emt 0:01:11]} 13. Rac1 {[%emt 0:05:11]} Qb6 {[%emt 0:01:55]} 14. Ne5 {[%emt 0:14:55]} Nb4 {[%emt 0:02:02] [#]} 15. Nxc6 $1 {[%emt 0:00:19]} bxc6 {[%emt 0:03:27]} 16. Qb1 {[%emt 0:01:08]} (16. Na4 $5 Nxa4 17. Qxa4 $11) 16... Nd5 {[%emt 0:00:25]} 17. e4 {[%emt 0:02:13]} Nxc3 {[%emt 0:00:34]} 18. Rxc3 {[%emt 0:03:38]} Rfd8 {[%emt 0:10:08]} 19. Qc2 {[%emt 0:04:30]} Na6 {[%emt 0:00:37][%cal Bc5a6,Ba6b4,Bb4a2,Ba2c3,Bc3d1][%mdl 32]} 20. Be3 {[%emt 0:06:28] Prevents Bc5.} Rxd1+ {[%emt 0:00:43]} 21. Qxd1 {[%emt 0:00:01]} Qxb2 {[%emt 0:00:45]} (21... Rd8 $142 22. Qc1 c5) 22. Qd7 $1 $16 {[%emt 0:08:03]} Rf8 {[%emt 0:00:22] [#]} 23. Qxc6 {[%emt 0:09:41]} (23. Rxc6 $2 Nb8 24. Qxe7 Nxc6 $19) (23. Rc4 $1 $18 Qxa2 24. Bf1 (24. Qxc6 Nb4 $11) (24. Rxc6 $2 Nb8 $19)) 23... Nb4 $14 {[%emt 0:37:52]} 24. Qc4 {[%emt 0:05:25]} (24. Qc7 $5) 24... Qxa2 {[%emt 0:02:10]} 25. Qxa2 {[%emt 0:00:24]} Nxa2 {[%emt 0:00:07]} 26. Rc7 {[%emt 0:00:04]} Bf6 {[%emt 0:00:10]} 27. Bxa7 {[%emt 0:00:39]} Nc3 {[%emt 0:02:41]} 28. Be3 {[%emt 0:02:33]} Bd4 {[%emt 0:01:52]} 29. Bf1 {[%emt 0:01:28]} Bf6 {[%emt 0:06:33]} 30. Rc4 {[%emt 0:05:02]} Rd8 {[%emt 0:01:06]} 31. Kg2 {[%emt 0:00:18]} h6 {[%emt 0:00:29]} 32. h4 {[%emt 0:00:34]} Nd1 {[%emt 0:00:35]} 33. Bb6 {[%emt 0:02:48]} Rd2 {[%emt 0:00:35]} 34. h5 {[%emt 0:02:19]} Rb2 {[%emt 0:02:00]} 35. Ba7 {[%emt 0:00:05]} Ra2 {[%emt 0:00:25]} 36. Rc8+ {[%emt 0:00:19]} Kh7 {[%emt 0:00:12]} 37. Rc7 {[%emt 0:00:02]} Rd2 $2 {[%emt 0:00:59]} ({Better is} 37... Kg8 $14) 38. Bb5 $18 {[%emt 0:00:21][%cal Ob5e8]} ({But not} 38. Rxf7 Kg8 39. Rc7 Nxf2) 38... Bd4 {[%emt 0:00:28]} 39. Bxd4 {[%emt 0:00:12]} (39. Rxf7 Kg8 40. Rd7 Rxf2+ 41. Kg1 Bxa7 42. Rxa7 Rf3 $16) 39... Rxd4 {[%emt 0:00:01][%mdl 4096] Endgame KRB-KRN} 40. Be8 {[%emt 0:00:00]} (40. Rxf7 Kg8 41. Rd7 Rxd7 42. Bxd7 e5 $18) 40... Rd2 {[%emt 0:00:00]} 41. Rxf7 {[%emt 0:03:59]} Ne3+ {[%emt 0:05:37]} 42. Kh3 {[%emt 0:01:44]} Nd1 {[%emt 0:00:14]} 43. f3 {[%emt 0:29:45][%cal Bf2f3,Bf3f4][%mdl 32]} Nf2+ {[%emt 0:04:39]} 44. Kh4 {[%emt 0:00:00]} Nd3 $2 {[%emt 0:04:41]} (44... Kg8 {was called for.}) 45. f4 {[%emt 0:00:00] aiming for Re7.} Kg8 {[%emt 0:07:40]} 46. Rc7 {[%emt 0:00:00] Against Nc5} g5+ {[%emt 0:00:59]} (46... Kf8 $142 47. Bg6 Rh2+ 48. Kg4 Nf2+ 49. Kf3 Nd1 50. Rf7+ Ke8) 47. hxg6 {[%emt 0:00:00]} Ne1 {[%emt 0:00:56]} 48. Bb5 {[%emt 0:00:00]} (48. Kg4 $142 Re2 49. e5 Kf8 50. Bd7 Rc2 51. Rb7 Rb2 52. Rxb2 Nd3 53. Rb8+ Kg7 54. Bxe6 Kxg6 55. Bf5+ Kf7 56. Rb7+ (56. Bxd3 Ke6 57. Be4 Ke7 58. f5 Kd7 59. f6 Kc7 60. Rb7+ Kc8 61. f7 h5+ 62. Kh3 Kd8 63. f8=Q#) 56... Ke8 57. Bxd3) 1-0

[Event "Azerbaijan-ch 1st League 2025"]
[Site "Baku"]
[Date "2025.01.06"]
[Round "1.4"]
[White "Garayev, Kanan"]
[Black "Idrisov, Tabriz"]
[Result "1-0"]
[Annotator "TA"]
[ECO "E06"]
[WhiteElo "2340"]
[BlackElo "2073"]
[PlyCount "109"]
[EventDate "2025.01.05"]
[EventType "swiss"]
[EventCountry "AZE"]
[SourceTitle "playchess.com"]
[Source "ChessBase"]
[SourceQuality "1"]
[TimeControl "40/5400+30:1800+30"]

{[%evp 16,109,21,34,49,33,63,50,64,64,59,63,77,70,141,127,161,131,168,161,195,216,207,212,202,103,93,114,132,119,100,38,35,0,0,-46,108,121,96,109,112,122,110,121,158,50,108,93,112,91,244,196,204,194,381,360,472,420,489,370,574,489,580,607,611,609,575,574,563,545,533,474,487,487,475,475,676,645,685,681,785,752,881,853,993,918,1408,1263,1877,1883,2070,1938,1493,2062,1738,1792]} 1. d4 {[%emt 0:00:57]} Nf6 {[%emt 0:01:09]} 2. c4 {[%emt 0:00:22]} e6 {[%emt 0:00:46]} 3. g3 {[%emt 0:00:29]} d5 {[%emt 0:03:54]} 4. Bg2 {[%emt 0:00:09]} Be7 {[%emt 0:00:05]} 5. Nf3 {[%emt 0:00:12]} O-O {[%emt 0:00:16]} 6. O-O {[%emt 0:00:24]} Nbd7 {[%emt 0:10:49][%cal Bb8d7,Bd7b6,Bb6d5][%mdl 32]} 7. Nc3 {[%emt 0:02:05]} c6 {[%emt 0:01:08]} 8. Nd2 {[%emt 0:07:43]} dxc4 {[%emt 0:10:59]} 9. Nxc4 {[%emt 0:00:50]} Nb6 {[%emt 0:00:38]} 10. b3 {[%emt 0:09:10]} Nbd5 {[%emt 0:08:11]} 11. Bb2 {[%emt 0:01:37]} b5 {[%emt 0:01:14]} 12. Ne5 {[%emt 0:01:19]} Bb7 {[%emt 0:02:24]} 13. Rc1 {[%emt 0:03:28]} Qb6 {[%emt 0:05:00]} 14. Ne4 {[%emt 0:03:57]} Rac8 {[%emt 0:15:32]} (14... Nxe4 $14 15. Bxe4 Rfd8) 15. Nc5 $16 {[%emt 0:04:30]} Rfd8 {[%emt 0:01:43]} 16. Qc2 {[%emt 0:02:13]} Ba8 {[%emt 0:02:24]} 17. a3 {[%emt 0:03:45] Inhibits Nb4.} a5 {[%emt 0:00:25]} 18. e4 {[%emt 0:02:06]} Nc7 {[%emt 0:00:08]} 19. f4 {[%emt 0:01:25][%cal Bf2f4,Bf4f5][%mdl 32]} Na6 {[%emt 0:09:08]} 20. Ned3 {[%emt 0:06:07]} ({Better is} 20. f5 $18) 20... Nxc5 {[%emt 0:05:39]} 21. Nxc5 {[%emt 0:01:20]} Nd7 {[%emt 0:00:56]} 22. f5 {[%emt 0:06:48]} e5 {[%emt 0:02:07]} 23. b4 {[%emt 0:06:27] White is much more active.} (23. f6 $1 $16 {[%cal Rf6e7]} Nxf6 24. b4) 23... Bf6 $14 {[%emt 0:03:44]} 24. bxa5 {[%emt 0:11:29]} Qa7 {[%emt 0:02:41]} 25. Rfd1 {[%emt 0:06:55]} (25. dxe5 $11 {is more appropriate.} Nxe5 26. Kh1) 25... Nxc5 $2 {[%emt 0:07:52]} (25... Bg5 $1 $15 {keeps the upper hand.}) 26. Qxc5 $16 {[%emt 0:03:44]} Qxc5 {[%emt 0:00:02]} 27. dxc5 {[%emt 0:00:13]} Bg5 {[%emt 0:00:16]} 28. Rxd8+ {[%emt 0:05:03]} Rxd8 {[%emt 0:00:01] [#]} 29. Rc2 $1 $36 {[%emt 0:00:06][%mdl 2048] Black is under strong pressure.} f6 {[%emt 0:03:26] [#]} 30. a6 {[%emt 0:01:34] Against Bb7} ({White must play} 30. Kf2 $1 $16) 30... Be3+ {[%emt 0:00:59]} (30... Rd7 $14) 31. Kf1 {[%emt 0:00:47]} Kf8 {[%emt 0:01:26]} 32. Ke2 {[%emt 0:02:38] Prevents Rd3.} Bh6 $2 {[%emt 0:00:08]} (32... Bg1 $16) 33. Bc3 {[%emt 0:00:27]} Rd7 {[%emt 0:00:47]} 34. a4 {[%emt 0:00:19]} bxa4 $2 {[%emt 0:00:54]} (34... Ke8 {was called for.} 35. Bf1 Ra7) 35. Ra2 $18 {[%emt 0:00:44]} Ke7 {[%emt 0:00:35]} 36. Rxa4 {[%emt 0:00:05]} g5 {[%emt 0:00:29]} 37. Bd2 {[%emt 0:02:31]} Ra7 {[%emt 0:00:31]} (37... Bf8 $142 38. Bf1 Kd8 39. Ba5+ Kc8) 38. h4 {[%emt 0:00:39]} Kd7 {[%emt 0:00:12]} 39. hxg5 {[%emt 0:00:10]} fxg5 {[%emt 0:00:23]} 40. Bc3 {[%emt 0:00:00]} Bg7 {[%emt 0:00:00]} 41. Bf3 {[%emt 0:05:16]} Ke7 {[%emt 0:06:14]} 42. Ke3 {[%emt 0:00:54]} Kf6 {[%emt 0:01:30]} 43. Be2 {[%emt 0:00:12] And now Rb4 would win.} Bf8 {[%emt 0:00:17]} 44. Ra5 {[%emt 0:00:36]} Rd7 {[%emt 0:00:30]} 45. g4 {[%emt 0:01:09]} Be7 {[%emt 0:00:29]} (45... Rd8 $142 46. Bd2 Be7) 46. Kf3 {[%emt 0:02:52]} h6 {[%emt 0:03:04]} 47. Be1 {[%emt 0:03:11]} Rd8 {[%emt 0:05:36]} 48. Bf2 {[%emt 0:00:18]} Rb8 {[%emt 0:04:28]} 49. Bc4 {[%emt 0:02:19]} Rb2 {[%emt 0:01:43]} 50. Be6 {[%emt 0:01:01]} Bf8 {[%emt 0:03:29]} 51. Ra1 {[%emt 0:00:45]} h5 {[%emt 0:00:43]} 52. gxh5 {[%emt 0:00:54]} g4+ {[%emt 0:00:50]} 53. Kg3 {[%emt 0:00:01]} ({Not} 53. Kxg4 Rxf2 54. Rb1 Rf4+ 55. Kg3 Kg5 $18 (55... Bxc5 56. Rb8 $16)) 53... Bh6 {[%emt 0:00:23]} 54. Ra2 {[%emt 0:01:26]} Rb4 {[%emt 0:00:30]} 55. Re2 {[%emt 0:00:01]} 1-0

[Event "Azerbaijan-ch 1st League 2025"]
[Site "Baku"]
[Date "2025.01.06"]
[Round "1.5"]
[White "Gulumov, Muthat"]
[Black "Rustamov, Rustam"]
[Result "1/2-1/2"]
[Annotator "TA"]
[ECO "B51"]
[WhiteElo "2054"]
[BlackElo "2305"]
[PlyCount "126"]
[EventDate "2025.01.05"]
[EventType "swiss"]
[EventCountry "AZE"]
[SourceTitle "playchess.com"]
[Source "ChessBase"]
[SourceQuality "1"]
[TimeControl "40/5400+30:1800+30"]

{[%evp 21,126,42,39,47,48,33,20,21,26,18,27,22,50,25,28,26,4,8,50,46,57,9,11,3,3,0,85,79,91,80,97,85,130,130,115,141,264,110,143,145,255,0,0,0,0,0,0,0,0,0,0,0,0,0,0,0,0,0,0,-4,0,0,0,-3,0,0,0,-6,0,0,0,0,0,0,0,0,0,0,0,0,0,0,0,0,0,0,0,0,0,0,0,0,0,0,0,0,0,0,0,0,0,0,0,0,0,0,0]} 1. e4 {[%emt 0:00:01]} c5 {[%emt 0:00:12]} 2. Nf3 {[%emt 0:00:07]} d6 {[%emt 0:00:58]} 3. Bb5+ {[%emt 0:00:08]} Nd7 {[%emt 0:00:16]} 4. c4 {[%emt 0:00:12]} a6 {[%emt 0:00:16]} 5. Ba4 {[%emt 0:00:51]} e5 {[%emt 0:02:11]} 6. Nc3 {[%emt 0:00:23] B51: Sicilian: Moscow Variation (3 Bb5+) without 3...Bd7.} g6 {[%emt 0:01:56]} 7. d3 {[%emt 0:03:04]} Bg7 {[%emt 0:00:29]} 8. O-O {[%emt 0:02:22]} Ne7 {[%emt 0:00:42]} 9. a3 {[%emt 0:03:11]} O-O {[%emt 0:00:48]} 10. b4 {[%emt 0:03:30]} a5 $146 {[%emt 0:04:00]} ({Predecessor:} 10... b6 11. Nd5 Nxd5 12. cxd5 Nf6 13. bxc5 bxc5 14. Bc6 Rb8 15. Bd2 Bg4 16. h3 Bxf3 17. Qxf3 {½-½ Zhou,L (1986)-Guder,S (1814) Berlin Werner Ott op 2022 (9)}) 11. Bxd7 {[%emt 0:06:40]} Bxd7 {[%emt 0:03:44]} 12. bxc5 {[%emt 0:00:06]} dxc5 {[%emt 0:00:11]} 13. Be3 {[%emt 0:00:27]} b6 {[%emt 0:01:06]} 14. Qd2 {[%emt 0:02:00]} Bg4 {[%emt 0:07:37]} 15. Ne1 {[%emt 0:04:37]} Be6 {[%emt 0:00:17]} 16. Rb1 {[%emt 0:09:18]} Rb8 {[%emt 0:04:01]} 17. Bh6 {[%emt 0:03:35]} Nc6 {[%emt 0:01:10]} 18. Bxg7 {[%emt 0:10:06]} Kxg7 {[%emt 0:01:14]} 19. Nd5 {[%emt 0:00:59]} Nd4 {[%emt 0:12:23]} 20. Nc2 {[%emt 0:02:22]} Bxd5 {[%emt 0:01:59]} 21. cxd5 {[%emt 0:01:20]} (21. exd5 $14 {was preferrable.} Nf5 22. Rfe1) 21... f5 {[%emt 0:03:11]} 22. Nxd4 {[%emt 0:00:12]} exd4 {[%emt 0:00:12]} 23. f3 {[%emt 0:02:18]} a4 {[%emt 0:03:08]} (23... b5 $11) 24. Qc2 $16 {[%emt 0:00:29]} Qd7 {[%emt 0:01:04]} 25. Qc4 {[%emt 0:00:30]} Rfc8 {[%emt 0:01:31]} 26. Rb5 {[%emt 0:01:31]} Qe7 {[%emt 0:01:10]} 27. Qxa4 {[%emt 0:02:35]} fxe4 {[%emt 0:01:43]} 28. fxe4 {[%emt 0:01:51]} c4 {[%emt 0:01:47]} (28... Rf8 $16 29. Rbb1 h5) 29. dxc4 {[%emt 0:03:48]} (29. d6 $18 {and White stays clearly on top.} Qd7 (29... Qxd6 $2 {perishes.} 30. Rd5 $18) 30. Qb4 (30. dxc4 Rf8 $18)) 29... Qxe4 {[%emt 0:02:10] [#]} 30. Rbb1 $1 {[%emt 0:08:29]} Rb7 {[%emt 0:06:01] [#]} (30... Qe3+ $16 31. Kh1 Rf8) 31. Rxb6 $2 {[%emt 0:02:28]} (31. Rbe1 $3 $18 {[%mdl 512]} Qh4 (31... Qg4 32. Qb3) 32. Qb3) 31... Rxb6 {[%emt 0:02:44]} 32. Qd7+ {[%emt 0:00:49]} Kh6 {[%emt 0:00:16]} 33. Qxc8 {[%emt 0:01:29]} Qe3+ {[%emt 0:00:24]} 34. Kh1 {[%emt 0:00:09]} Rf6 {[%emt 0:00:06]} 35. Rb1 {[%emt 0:07:58]} (35. Rxf6 $2 {is a self mate.} Qe1+) 35... Rf5 $1 {[%emt 0:02:39]} 36. Qe6 {[%emt 0:12:01]} Qd3 {[%emt 0:15:54]} 37. Qe1 {[%emt 0:00:05]} Qxc4 {[%emt 0:01:24]} 38. d6 {[%emt 0:00:36]} Qd5 $1 {[%emt 0:02:34]} 39. Qh4+ {[%emt 0:00:16]} Kg7 {[%emt 0:00:25]} 40. Qg3 {[%emt 0:00:00]} Rg5 {[%emt 0:00:00]} 41. Qf2 {[%emt 0:06:36]} Rf5 {[%emt 0:02:13]} 42. Qg3 {[%emt 0:01:09]} Rg5 {[%emt 0:03:31]} 43. Qf2 {[%emt 0:01:00]} Rf5 {[%emt 0:02:59]} 44. Qg3 {[%emt 0:00:31]} Rf6 {[%emt 0:03:06]} 45. Qd3 {[%emt 0:03:48]} Rf2 {[%emt 0:02:05]} 46. Qg3 {[%emt 0:01:16]} Rf6 {[%emt 0:00:31]} 47. Qd3 {[%emt 0:00:41]} Rxd6 {[%emt 0:00:21]} 48. h3 {[%emt 0:00:14]} Rd7 {[%emt 0:00:40]} 49. Rd1 {[%emt 0:00:35]} Qf5 {[%emt 0:00:24]} 50. Qxf5 {[%emt 0:02:58]} gxf5 {[%emt 0:00:04]} 51. a4 {[%emt 0:00:46]} Kf6 {[%emt 0:00:17]} 52. a5 {[%emt 0:00:29]} Ke5 {[%emt 0:00:15]} 53. a6 {[%emt 0:01:39]} Ra7 {[%emt 0:04:46]} 54. Ra1 {[%emt 0:00:05]} d3 {[%emt 0:05:25]} 55. Kg1 {[%emt 0:01:14]} d2 {[%emt 0:02:20]} 56. Rd1 {[%emt 0:01:09]} Rxa6 {[%emt 0:00:11]} 57. Rxd2 {[%emt 0:00:05]} h5 {[%emt 0:00:10]} 58. Kf2 $1 {[%emt 0:00:04]} h4 {[%emt 0:00:07]} 59. Rb2 {[%emt 0:00:04]} Ra4 {[%emt 0:00:08]} 60. Rb3 {[%emt 0:00:06]} Ra1 {[%emt 0:00:43]} 61. Rb4 {[%emt 0:00:21]} Ra2+ {[%emt 0:00:15]} 62. Kg1 {[%emt 0:00:47]} f4 {[%emt 0:00:21]} 63. Rb5+ {[%emt 0:01:29]} Ke4 {[%emt 0:27:15]} 1/2-1/2